fUST/lending_fUST_20250628
["ID","MTS","AMOUNT","RATE_DAILY","PERIOD"]
[368277178,1751085046068,-584.03,0.00020821,2]
[368277180,1751085046078,-460.0,0.00020821,2]
[368277181,1751085046087,-672.73,0.00020821,2]
[368277183,1751085046097,-462.16,0.00020821,2]
[368277185,1751085046106,-460.0,0.00020821,2]
[368277186,1751085046116,-1138.53,0.00020821,2]
[368277187,1751085046126,-460.0,0.00020821,2]
[368277189,1751085046136,-460.0,0.00020821,2]
[368277191,1751085046146,-370.20535212,0.00020821,2]
[368277193,1751085046155,-460.0,0.00020821,2]
[368277194,1751085046164,-460.0,0.00020821,2]
[368277195,1751085046174,-1997.11,0.00020821,2]
[368277196,1751085046185,-460.0,0.00020821,2]
[368277197,1751085046195,-1957.89,0.00020821,2]
[368277198,1751085046204,-460.0,0.00020821,2]
[368277199,1751085046213,-460.0,0.00020821,2]
[368277200,1751085046224,-460.0,0.00020821,2]
[368277201,1751085046234,-460.0,0.00020821,2]
[368277203,1751085046243,-2555.1,0.00020821,2]
[368277205,1751085046255,-626.01,0.00020821,2]
[368277206,1751085046265,-945.23,0.00020821,2]
[368277207,1751085046274,-2959.3,0.00020821,2]
[368277208,1751085046283,-4178.89,0.00020821,2]
[368277209,1751085046293,-460.0,0.00020821,2]
[368277210,1751085046302,-460.0,0.00020821,2]
[368277211,1751085046311,-460.0,0.00020821,2]
[368277212,1751085046320,-332.51731225,0.00020821,2]
[368277213,1751085046329,-929.77,0.00020821,2]
[368277214,1751085046339,-748.96,0.00020821,2]
[368277215,1751085046348,-517.34,0.00020821,2]
[368277216,1751085046357,-2230.94,0.00020821,2]
[368277217,1751085046366,-1772.49,0.00020821,2]
[368277218,1751085046375,-1368.73,0.00020821,2]
[368277219,1751085046385,-460.0,0.00020821,2]
[368277220,1751085046394,-563.94,0.00020821,2]
[368277221,1751085046403,-460.0,0.00020821,2]
[368277222,1751085046413,-460.0,0.00020821,2]
[368277223,1751085046422,-460.0,0.00020821,2]
[368277224,1751085046431,-740.09,0.00020821,2]
[368277225,1751085046441,-1825.1,0.00020821,2]
[368277226,1751085046450,-567.91,0.00020821,2]
[368277227,1751085046459,-4347.56,0.00020821,2]
[368277228,1751085046469,-1456.68,0.00020821,2]
[368277229,1751085046478,-460.0,0.00020821,2]
[368277230,1751085046487,-460.0,0.00020821,2]
[368277231,1751085046496,-460.0,0.00020821,2]
[368277232,1751085046505,-460.0,0.00020821,2]
[368277233,1751085046515,-460.0,0.00020821,2]
[368277234,1751085046524,-460.0,0.00020821,2]
[368277235,1751085046533,-460.0,0.00020821,2]
[368277236,1751085046543,-973.88,0.00020821,2]
[368277237,1751085046553,-980.96,0.00020821,2]
[368277238,1751085046562,-833.07,0.00020821,2]
[368277239,1751085046571,-1723.66,0.00020821,2]
[368277240,1751085046580,-1643.37,0.00020821,2]
[368277241,1751085046589,-2082.61,0.00020821,2]
[368277242,1751085046599,-186.83016,0.00020834,4]
[368277243,1751085046609,-798.67117612,0.00020848,2]
[368277244,1751085046619,-1281.60159767,0.00020859,2]
[368277245,1751085046630,-7703.96641646,0.00020866,4]
[368277246,1751085046639,-828.22200964,0.00020903,2]
[368277247,1751085046649,-858.86622399,0.00020958,2]
[368277248,1751085046659,-500.0,0.00020958,15]
[368277249,1751085046668,-405.3,0.00020964,3]
[368277250,1751085046678,-643.71513718,0.00020966,2]
[368277251,1751085046687,-269.1667008,0.00021,2]
[368277252,1751085046697,-5209.47194379,0.00021,2]
[368277253,1751085046707,-201.33996909,0.00021,2]
[368277254,1751085046716,-18803.49168301,0.00021,2]
[368277255,1751085046726,-890.64427428,0.00021013,2]
[368277256,1751085046736,-1000.0,0.00021059,2]
[368277257,1751085046745,-923.59811243,0.00021068,2]
[368277258,1751085046755,-1959.0,0.00021073,2]
[368277259,1751085046764,-160.0,0.00021083,3]
[368277260,1751085046774,-500.0,0.00021094,2]
[368277261,1751085046783,-447.73536071,0.00021094,2]
[368277262,1751085046792,-500.0,0.00021094,2]
[368277263,1751085046803,-508.19,0.00021095,2]
[368277264,1751085046812,-460.0,0.00021095,2]
[368277265,1751085046822,-666.01,0.00021095,2]
[368277266,1751085046832,-460.0,0.00021095,2]
[368277267,1751085046841,-460.0,0.00021095,2]
[368277268,1751085046851,-729.39,0.00021095,2]
[368277269,1751085046861,-460.0,0.00021095,2]
[368277270,1751085046870,-460.0,0.00021095,2]
[368277271,1751085046880,-460.0,0.00021095,2]
[368277272,1751085046890,-460.0,0.00021095,2]
[368277273,1751085046902,-460.0,0.00021095,2]
[368277274,1751085046911,-2594.14,0.00021095,2]
[368277275,1751085046921,-2386.93,0.00021095,2]
[368277276,1751085046930,-584.03,0.00021095,2]
[368277277,1751085046939,-460.0,0.00021095,2]
[368277278,1751085046949,-672.73,0.00021095,2]
[368277279,1751085046959,-462.16,0.00021095,2]
[368277280,1751085046968,-460.0,0.00021095,2]
[368277281,1751085046978,-1138.53,0.00021095,2]
[368277282,1751085046988,-460.0,0.00021095,2]
[368277283,1751085046997,-460.0,0.00021095,2]
[368277284,1751085047006,-460.0,0.00021095,2]
[368277285,1751085047015,-460.0,0.00021095,2]
[368277286,1751085047025,-1997.11,0.00021095,2]
[368277287,1751085047035,-466.75731154,0.00021095,2]
[368277288,1751085047043,-1957.89,0.00021095,2]
[368277289,1751085047053,-460.0,0.00021095,2]
[368277290,1751085047062,-285.03360379,0.00021095,2]
[368277291,1751085047071,-460.0,0.00021095,2]
[368277292,1751085047080,-460.0,0.00021095,2]
[368277293,1751085047089,-2555.1,0.00021095,2]
[368277294,1751085047100,-626.01,0.00021095,2]
[368277295,1751085047110,-945.23,0.00021095,2]
[368277296,1751085047120,-2959.3,0.00021095,2]
[368277297,1751085047130,-4178.89,0.00021095,2]
[368277298,1751085047139,-460.0,0.00021095,2]
[368277299,1751085047360,-460.0,0.00021095,2]
[368277300,1751085047371,-460.0,0.00021095,2]
[368277301,1751085047380,-929.77,0.00021095,2]
[368277302,1751085047390,-748.96,0.00021095,2]
[368277303,1751085047400,-517.34,0.00021095,2]
[368277304,1751085047409,-2230.94,0.00021095,2]
[368277305,1751085047418,-1772.49,0.00021095,2]
[368277306,1751085047428,-1368.73,0.00021095,2]
[368277307,1751085047437,-460.0,0.00021095,2]
[368277308,1751085047447,-563.94,0.00021095,2]
[368277309,1751085047456,-460.0,0.00021095,2]
[368277310,1751085047466,-460.0,0.00021095,2]
[368277311,1751085047475,-460.0,0.00021095,2]
[368277312,1751085047485,-740.09,0.00021095,2]
[368277313,1751085047494,-1825.1,0.00021095,2]
[368277314,1751085047503,-567.91,0.00021095,2]
[368277315,1751085047513,-4347.56,0.00021095,2]
[368277316,1751085047522,-1456.68,0.00021095,2]
[368277317,1751085047531,-460.0,0.00021095,2]
[368277318,1751085047540,-228.01781677,0.00021095,2]
[368277319,1751085047550,-460.0,0.00021095,2]
[368277320,1751085047560,-460.0,0.00021095,2]
[368277321,1751085047569,-460.0,0.00021095,2]
[368277322,1751085047579,-460.0,0.00021095,2]
[368277323,1751085047588,-460.0,0.00021095,2]
[368277324,1751085047597,-973.88,0.00021095,2]
[368277325,1751085047607,-980.96,0.00021095,2]
[368277326,1751085047616,-373.09576363,0.00021095,2]
[368277327,1751085047917,-460.0,0.00019452,2]
[368277328,1751085047929,-460.0,0.00019726,2]
[368277329,1751085047939,-460.0,0.0002,2]
[368277330,1751085047948,-460.0,0.00020273,2]
[368277331,1751085047957,-460.0,0.00020547,2]
[368277332,1751085047967,-460.0,0.00020821,2]
[368277333,1751085047976,-459.97423637,0.00021095,2]
[368277334,1751085047986,-1723.66,0.00021095,2]
[368277335,1751085047996,-1643.37,0.00021095,2]
[368277336,1751085048006,-2082.61,0.00021095,2]
[368277337,1751085048015,-460.0,0.00021095,2]
[368277338,1751085048024,-151.0,0.000211,4]
[368277339,1751085048033,-7703.96641646,0.00021107,4]
[368277340,1751085048043,-25000.0,0.00021121,2]
[368277341,1751085048052,-5000.0,0.00021121,2]
[368277342,1751085048061,-957.77124259,0.00021123,2]
[368277343,1751085048070,-993.20877856,0.00021178,2]
[368277344,1751085048079,-366.1706175,0.00021178,2]
[368277345,1751085048088,-179.8295263,0.00021178,2]
[368277346,1751085048098,-153.0,0.00021178,2]
[368277347,1751085048108,-575.2177202,0.00021178,2]
[368277348,1751085048118,-159.266168,0.00021178,2]
[368277349,1751085048127,-177.5104021,0.00021178,2]
[368277350,1751085048136,-153.0,0.00021178,2]
[368277351,1751085048145,-575.2177202,0.00021178,2]
[368277352,1751085048155,-177.5104021,0.00021178,2]
[368277353,1751085048163,-159.266168,0.00021178,2]
[368277354,1751085048173,-153.0,0.00021178,2]
[368277355,1751085048182,-575.2177202,0.00021178,2]
[368277356,1751085048191,-177.5104021,0.00021178,2]
[368277357,1751085048201,-1149.7704461,0.00021178,2]
[368277358,1751085048210,-159.266168,0.00021178,2]
[368277359,1751085048220,-1149.7967663,0.00021178,2]
[368277360,1751085048229,-177.5104021,0.00021178,2]
[368277361,1751085048239,-153.0,0.00021178,2]
[368277362,1751085048248,-177.5104021,0.00021178,2]
[368277363,1751085048259,-159.266168,0.00021178,2]
[368277364,1751085048269,-177.5104021,0.00021178,2]
[368277365,1751085048278,-159.266168,0.00021178,2]
[368277366,1751085048288,-159.266168,0.00021178,2]
[368277367,1751085048298,-159.266168,0.00021178,2]
[368277368,1751085048307,-154.440218,0.00021178,2]
[368277369,1751085048317,-236.5869164,0.00021178,2]
[368277370,1751085048327,-153.0,0.00021178,2]
[368277371,1751085048336,-159.266168,0.00021178,2]
[368277372,1751085048346,-159.266168,0.00021178,2]
[368277373,1751085048355,-320.3441464,0.00021178,2]
[368277374,1751085048364,-153.0,0.00021178,2]
[368277375,1751085048374,-159.266168,0.00021178,2]
[368277376,1751085048383,-1000.0,0.00021199,5]
[368277377,1751085048392,-177.5104021,0.00021205,2]
[368277378,1751085048401,-405.3,0.00021208,4]
[368277379,1751085048411,-1029.95750337,0.00021233,2]
[368277380,1751085048420,-1068.065931,0.00021288,2]
[368277381,1751085048429,-1500.0,0.0002133,2]
[368277382,1751085048439,-1107.58437044,0.00021343,2]
[368277383,1751085048449,-7703.96641646,0.00021348,5]
[368277384,1751085048459,-324.854335,0.00021369,2]
[368277385,1751085048468,-324.854335,0.00021369,2]
[368277386,1751085048477,-508.19,0.00021369,2]
[368277387,1751085048487,-500.0,0.00021369,16]
[368277388,1751085048496,-500.0,0.00021369,16]
[368277389,1751085048505,-460.0,0.00021369,2]
[368277390,1751085048515,-666.01,0.00021369,2]
[368277391,1751085048524,-460.0,0.00021369,2]
[368277392,1751085048533,-460.0,0.00021369,2]
[368277393,1751085048543,-729.39,0.00021369,2]
[368277394,1751085048552,-460.0,0.00021369,2]
[368277395,1751085048562,-460.0,0.00021369,2]
[368277396,1751085048571,-225.32449672,0.00021369,2]
[368277397,1751085048580,-460.0,0.00021369,2]
[368277398,1751085048589,-460.0,0.00021369,2]
[368277399,1751085048599,-2594.14,0.00021369,2]
[368277400,1751085048608,-2386.93,0.00021369,2]
[368277401,1751085048618,-584.03,0.00021369,2]
[368277402,1751085048627,-460.0,0.00021369,2]
[368277403,1751085048636,-672.73,0.00021369,2]
[368277404,1751085048646,-462.16,0.00021369,2]
[368277405,1751085048655,-460.0,0.00021369,2]
[368277406,1751085048665,-363.85737153,0.00021369,2]
[368277407,1751085049065,-460.0,0.00019178,2]
[368277408,1751085049075,-460.0,0.00019452,2]
[368277409,1751085049084,-774.67262847,0.00021369,2]
[368277410,1751085049093,-460.0,0.00021369,2]
[368277411,1751085049103,-207.73737153,0.00021369,2]
[368277412,1751085049114,-252.26262847,0.00021369,2]
[368277413,1751085049123,-460.0,0.00021369,2]
[368277414,1751085049133,-460.0,0.00021369,2]
[368277415,1751085049142,-1997.11,0.00021369,2]
[368277416,1751085049152,-915.80369461,0.00021369,2]
[368277417,1751085049379,-460.0,0.00019178,2]
[368277418,1751085049389,-460.0,0.00019726,2]
[368277419,1751085049399,-460.0,0.0002,2]
[368277420,1751085049409,-460.0,0.00020273,2]
[368277421,1751085049418,-460.0,0.00020547,2]
[368277422,1751085049428,-460.0,0.00020821,2]
[368277423,1751085049437,-242.2,0.00021095,2]
[368277424,1751085049447,-1042.08630539,0.00021369,2]
[368277425,1751085049456,-460.0,0.00021369,2]
[368277426,1751085049465,-460.0,0.00021369,2]
[368277427,1751085049475,-460.0,0.00021369,2]
[368277428,1751085049484,-2555.1,0.00021369,2]
[368277429,1751085049493,-626.01,0.00021369,2]
[368277430,1751085049503,-945.23,0.00021369,2]
[368277431,1751085049512,-2959.3,0.00021369,2]
[368277432,1751085049521,-4178.89,0.00021369,2]
[368277433,1751085049531,-460.0,0.00021369,2]
[368277434,1751085049540,-460.0,0.00021369,2]
[368277435,1751085049550,-460.0,0.00021369,2]
[368277436,1751085049559,-929.77,0.00021369,2]
[368277437,1751085049568,-748.96,0.00021369,2]
[368277438,1751085049577,-517.34,0.00021369,2]
[368277439,1751085049587,-2230.94,0.00021369,2]
[368277440,1751085049596,-1772.49,0.00021369,2]
[368277441,1751085049606,-1368.73,0.00021369,2]
[368277442,1751085049615,-460.0,0.00021369,2]
[368277443,1751085049625,-563.94,0.00021369,2]
[368277444,1751085049635,-460.0,0.00021369,2]
[368277445,1751085049644,-327.00166879,0.00021369,2]
[368277446,1751085049654,-460.0,0.00021369,2]
[368277447,1751085049664,-740.09,0.00021369,2]
[368277448,1751085049674,-1825.1,0.00021369,2]
[368277449,1751085049683,-567.91,0.00021369,2]
[368277450,1751085049693,-4347.56,0.00021369,2]
[368277451,1751085049702,-1456.68,0.00021369,2]
[368277452,1751085049711,-460.0,0.00021369,2]
[368277453,1751085049720,-460.0,0.00021369,2]
[368277454,1751085049730,-460.0,0.00021369,2]
[368277455,1751085049739,-460.0,0.00021369,2]
[368277456,1751085049749,-460.0,0.00021369,2]
[368277457,1751085049758,-460.0,0.00021369,2]
[368277458,1751085049767,-973.88,0.00021369,2]
[368277459,1751085049777,-980.96,0.00021369,2]
[368277460,1751085049786,-833.07,0.00021369,2]
[368277461,1751085049796,-1723.66,0.00021369,2]
[368277462,1751085049806,-1643.37,0.00021369,2]
[368277463,1751085049816,-2082.61,0.00021369,2]
[368277464,1751085049825,-460.0,0.00021369,2]
[368277465,1751085049834,-1148.56499215,0.00021398,2]
[368277466,1751085049844,-151.0,0.000214,3]
[368277467,1751085049854,-151.0,0.000214,4]
[368277468,1751085049864,-631.85,0.00021426,2]
[368277469,1751085049873,-405.3,0.00021451,4]
[368277470,1751085049882,-1191.06189686,0.00021453,2]
[368277471,1751085049891,-1281.60159767,0.00021475,2]
[368277472,1751085049902,-1235.13118704,0.00021508,2]
[368277473,1751085049912,-186.83016,0.0002153,6]
[368277474,1751085049921,-563.248248,0.0002156,4]
[368277475,1751085049930,-585.80012901,0.00021567,2]
[368277476,1751085049940,-7703.96641646,0.0002159,5]
[368277477,1751085049949,-61611.28227,0.00021642,2]
[368277478,1751085049959,-460.0,0.00021643,2]
[368277479,1751085049968,-666.01,0.00021643,2]
[368277480,1751085049977,-415.7930902,0.00021643,2]
[368277481,1751085049987,-460.0,0.00021643,2]
[368277482,1751085049996,-729.39,0.00021643,2]
[368277483,1751085050006,-460.0,0.00021643,2]
[368277484,1751085050015,-460.0,0.00021643,2]
[368277485,1751085050024,-460.0,0.00021643,2]
[368277486,1751085050033,-460.0,0.00021643,2]
[368277487,1751085050043,-2386.93,0.00021643,2]
[368277488,1751085050052,-584.03,0.00021643,2]
[368277489,1751085050062,-460.0,0.00021643,2]
[368277490,1751085050072,-672.73,0.00021643,2]
[368277491,1751085050081,-462.16,0.00021643,2]
[368277492,1751085050091,-460.0,0.00021643,2]
[368277493,1751085050100,-1138.53,0.00021643,2]
[368277494,1751085050109,-460.0,0.00021643,2]
[368277495,1751085050119,-460.0,0.00021643,2]
[368277496,1751085050128,-460.0,0.00021643,2]
[368277497,1751085050137,-460.0,0.00021643,2]
[368277498,1751085050147,-1997.11,0.00021643,2]
[368277499,1751085050157,-1957.89,0.00021643,2]
[368277500,1751085050167,-460.0,0.00021643,2]
[368277501,1751085050176,-460.0,0.00021643,2]
[368277502,1751085050186,-460.0,0.00021643,2]
[368277503,1751085050195,-2555.1,0.00021643,2]
[368277504,1751085050205,-626.01,0.00021643,2]
[368277505,1751085050215,-945.23,0.00021643,2]
[368277506,1751085050226,-2959.3,0.00021643,2]
[368277507,1751085050235,-4178.89,0.00021643,2]
[368277508,1751085050245,-460.0,0.00021643,2]
[368277509,1751085050261,-460.0,0.00021643,2]
[368277510,1751085050270,-460.0,0.00021643,2]
[368277511,1751085050279,-929.77,0.00021643,2]
[368277512,1751085050289,-748.96,0.00021643,2]
[368277513,1751085050298,-517.34,0.00021643,2]
[368277514,1751085050307,-2230.94,0.00021643,2]
[368277515,1751085050317,-1772.49,0.00021643,2]
[368277516,1751085050327,-1368.73,0.00021643,2]
[368277517,1751085050336,-460.0,0.00021643,2]
[368277518,1751085050346,-563.94,0.00021643,2]
[368277519,1751085050355,-460.0,0.00021643,2]
[368277520,1751085050364,-460.0,0.00021643,2]
[368277521,1751085050373,-740.09,0.00021643,2]
[368277522,1751085050383,-1825.1,0.00021643,2]
[368277523,1751085050392,-567.91,0.00021643,2]
[368277524,1751085050401,-4347.56,0.00021643,2]
[368277525,1751085050410,-1456.68,0.00021643,2]
[368277526,1751085050420,-460.0,0.00021643,2]
[368277527,1751085050429,-460.0,0.00021643,2]
[368277528,1751085050438,-460.0,0.00021643,2]
[368277529,1751085050448,-245.77939563,0.00021643,2]
[368277530,1751085050457,-460.0,0.00021643,2]
[368277531,1751085050466,-460.0,0.00021643,2]
[368277532,1751085050475,-973.88,0.00021643,2]
[368277533,1751085050484,-980.96,0.00021643,2]
[368277534,1751085050493,-833.07,0.00021643,2]
[368277535,1751085050503,-1723.66,0.00021643,2]
[368277536,1751085050515,-1643.37,0.00021643,2]
[368277537,1751085050526,-2082.61,0.00021643,2]
[368277538,1751085050535,-460.0,0.00021643,2]
[368277539,1751085050544,-2243.0,0.00021668,2]
[368277540,1751085050554,-5000.0,0.00021669,2]
[368277541,1751085050563,-405.3,0.00021695,4]
[368277542,1751085050573,-180.3394797,0.00021699,2]
[368277543,1751085050583,-153.0,0.00021699,2]
[368277544,1751085050593,-4088.63,0.000217,2]
[368277545,1751085050604,-151.0,0.000217,4]
[368277546,1751085050614,-500.0,0.00021706,2]
[368277547,1751085050623,-1959.0,0.00021714,2]
[368277548,1751085050632,-354.9576342,0.00021726,2]
[368277549,1751085050642,-1150.237922,0.00021726,2]
[368277550,1751085050652,-354.9892192,0.00021726,2]
[368277551,1751085050662,-168.0,0.00021755,2]
[368277552,1751085050671,-168.0,0.00021776,2]
[368277553,1751085050681,-500.0,0.0002178,17]
[368277554,1751085050690,-500.0,0.0002178,17]
[368277555,1751085050700,-1959.0,0.00021813,2]
[368277556,1751085050709,-7703.96641646,0.00021831,6]
[368277557,1751085050718,-168.0,0.00021831,2]
[368277558,1751085050727,-1000.0,0.00021878,2]
[368277559,1751085050737,-500.0,0.000219,2]
[368277560,1751085050746,-500.0,0.000219,2]
[368277561,1751085050755,-168.0,0.00021912,2]
[368277562,1751085050764,-324.854335,0.00021917,2]
[368277563,1751085050774,-324.854335,0.00021917,2]
[368277564,1751085050783,-460.0,0.00021917,2]
[368277565,1751085050793,-666.01,0.00021917,2]
[368277566,1751085050802,-460.0,0.00021917,2]
[368277567,1751085050812,-729.39,0.00021917,2]
[368277568,1751085050821,-460.0,0.00021917,2]
[368277569,1751085050830,-556.67630465,0.00021917,2]
[368277570,1751085050839,-460.0,0.00021917,2]
[368277571,1751085050848,-460.0,0.00021917,2]
[368277572,1751085050857,-2386.93,0.00021917,2]
[368277573,1751085050866,-584.03,0.00021917,2]
[368277574,1751085050876,-460.0,0.00021917,2]
[368277575,1751085050887,-672.73,0.00021917,2]
[368277576,1751085050896,-462.16,0.00021917,2]
[368277577,1751085050905,-460.0,0.00021917,2]
[368277578,1751085050915,-1138.53,0.00021917,2]
[368277579,1751085050924,-460.0,0.00021917,2]
[368277580,1751085050933,-460.0,0.00021917,2]
[368277581,1751085050943,-460.0,0.00021917,2]
[368277582,1751085050952,-460.0,0.00021917,2]
[368277583,1751085050962,-1997.11,0.00021917,2]
[368277584,1751085050972,-1957.89,0.00021917,2]
[368277585,1751085050982,-460.0,0.00021917,2]
[368277586,1751085050991,-460.0,0.00021917,2]
[368277587,1751085051002,-460.0,0.00021917,2]
[368277588,1751085051011,-2555.1,0.00021917,2]
[368277589,1751085051023,-626.01,0.00021917,2]
[368277590,1751085051033,-945.23,0.00021917,2]
[368277591,1751085051043,-2959.3,0.00021917,2]
[368277592,1751085051053,-4178.89,0.00021917,2]
[368277593,1751085051062,-460.0,0.00021917,2]
[368277594,1751085051071,-460.0,0.00021917,2]
[368277595,1751085051080,-460.0,0.00021917,2]
[368277596,1751085051090,-929.77,0.00021917,2]
[368277597,1751085051128,-748.96,0.00021917,2]
[368277598,1751085051137,-517.34,0.00021917,2]
[368277599,1751085051146,-2230.94,0.00021917,2]
[368277600,1751085051155,-1772.49,0.00021917,2]
[368277601,1751085051164,-1368.73,0.00021917,2]
[368277602,1751085051173,-460.0,0.00021917,2]
[368277603,1751085051182,-563.94,0.00021917,2]
[368277604,1751085051191,-460.0,0.00021917,2]
[368277605,1751085051200,-460.0,0.00021917,2]
[368277606,1751085051210,-740.09,0.00021917,2]
[368277607,1751085051220,-1825.1,0.00021917,2]
[368277608,1751085051229,-567.91,0.00021917,2]
[368277609,1751085051238,-2860.55089743,0.00021917,2]
[368277610,1751085051255,-1456.33233316,0.00021917,2]
[368277612,1751085473129,267.35667,0.00013699,2]
[368277613,1751086038089,-444.21158984,0.00018531,2]
[368277628,1751086232533,-755.78841016,0.00018531,2]
[368277630,1751086232543,-0.01212382,0.00018531,2]
[368277636,1751086232591,-299.98787618,0.00018531,2]
[368277638,1751086232600,-168.0,0.00018531,2]
[368277640,1751086232610,-1200.0,0.00018531,2]
[368277642,1751086232619,-4793.0,0.00018532,2]
[368277644,1751086232629,-3285.65775424,0.00018533,2]
[368277646,1751086232640,-429.14,0.00018533,2]
[368277666,1751086238439,-1575.02321406,0.00018533,2]
[368277667,1751086238451,-5171.81020467,0.00018533,2]
[368277668,1751086238463,-1056.37985105,0.00018533,2]
[368277669,1751086238544,-13381.98897598,0.00018533,2]
[368277670,1751086238553,-1990.70590792,0.000189,2]
[368277671,1751086238563,-500.0,0.00019174,2]
[368277672,1751086238574,-280.0,0.00019174,2]
[368277673,1751086238765,-500.0,0.00019174,2]
[368277674,1751086238776,-500.0,0.00019174,2]
[368277675,1751086238785,-500.0,0.00019174,2]
[368277676,1751086238794,-500.0,0.00019174,2]
[368277677,1751086238803,-500.0,0.00019174,2]
[368277678,1751086238813,-500.0,0.00019174,2]
[368277679,1751086238823,-460.0,0.00019178,2]
[368277680,1751086238834,-460.0,0.00019178,2]
[368277681,1751086238844,-406.38651822,0.00019178,2]
[368277682,1751086238853,-460.0,0.00019178,2]
[368277683,1751086238862,-472.06314082,0.00019178,2]
[368277684,1751086238871,-256.18751813,0.00019178,2]
[368277685,1751086238881,-484.0407332,0.00019178,2]
[368277686,1751086238891,-304.96351022,0.00019178,2]
[368277687,1751086238901,-460.0,0.00019178,2]
[368277688,1751086238913,-460.0,0.00019178,2]
[368277689,1751086238924,-460.0,0.00019178,2]
[368277690,1751086238934,-460.0,0.00019178,2]
[368277691,1751086238943,-460.0,0.00019178,2]
[368277692,1751086238954,-460.45128104,0.00019178,2]
[368277693,1751086238964,-460.0,0.00019178,2]
[368277694,1751086238974,-460.63317635,0.00019178,2]
[368277695,1751086238983,-312.41348072,0.00019178,2]
[368277696,1751086238995,-460.0,0.00019178,2]
[368277697,1751086239005,-460.0,0.00019178,2]
[368277698,1751086239014,-460.0,0.00019178,2]
[368277699,1751086239023,-303.52285358,0.00019178,2]
[368277700,1751086239032,-460.0,0.00019178,2]
[368277701,1751086239041,-591.5272404,0.00019178,2]
[368277702,1751086239051,-519.36,0.00019178,2]
[368277703,1751086239062,-460.0,0.00019178,2]
[368277704,1751086239072,-460.0,0.00019178,2]
[368277705,1751086239082,-460.0,0.00019178,2]
[368277706,1751086239091,-460.0,0.00019178,2]
[368277707,1751086239100,-460.0,0.00019178,2]
[368277708,1751086239109,-460.0,0.00019178,2]
[368277709,1751086239119,-642.01,0.00019178,2]
[368277710,1751086239128,-460.0,0.00019178,2]
[368277711,1751086239138,-460.0,0.00019178,2]
[368277712,1751086239147,-460.0,0.00019178,2]
[368277713,1751086239157,-460.0,0.00019178,2]
[368277714,1751086239166,-460.0,0.00019178,2]
[368277715,1751086239176,-460.0,0.00019178,2]
[368277716,1751086239185,-460.0,0.00019178,2]
[368277717,1751086239194,-460.0,0.00019178,2]
[368277718,1751086239203,-460.0,0.00019178,2]
[368277719,1751086239213,-254.44,0.00019178,2]
[368277720,1751086239223,-189.03460305,0.00019178,2]
[368277721,1751086239232,-460.0,0.00019178,2]
[368277722,1751086239242,-460.0,0.00019178,2]
[368277723,1751086239252,-460.0,0.00019178,2]
[368277724,1751086239261,-460.0,0.00019178,2]
[368277725,1751086239271,-460.0,0.00019178,2]
[368277726,1751086239280,-460.0,0.00019178,2]
[368277727,1751086239289,-460.0,0.00019178,2]
[368277728,1751086239299,-460.0,0.00019178,2]
[368277729,1751086239308,-254.44,0.00019178,2]
[368277730,1751086239318,-471.28283923,0.00019178,2]